bitfinex-derivatives/quotes_ETHF0:USTF0_20250807
["timestamp","ask_amount","ask_price","bid_price","bid_amount"]
[1754595095417,40.8,3842.1,3842.0,2.21633]
[1754595096321,41.9386,3842.1,3842.0,19.20253]
[1754595096614,41.9386,3842.1,3842.0,18.128]
[1754595097016,41.9386,3842.1,3842.0,18.6811]
[1754595097217,41.9386,3842.1,3842.0,0.7831]
[1754595097416,41.9386,3842.1,3842.0,18.9111]
[1754595097619,41.9386,3842.1,3842.0,0.7831]
[1754595097814,41.9386,3842.1,3842.0,18.9111]
[1754595098618,41.9386,3842.1,3842.0,18.9101]
[1754595099821,41.9386,3842.1,3842.0,0.7831]
[1754595100023,41.9386,3842.1,3842.0,18.6801]
[1754595100220,41.9386,3842.1,3842.0,18.3448]
[1754595100523,41.9386,3842.1,3842.0,18.9101]
[1754595100725,41.9386,3842.1,3842.0,19.5462]
[1754595101419,41.9386,3842.1,3842.0,19.8229]
[1754595102517,40.8,3842.1,3842.0,19.8229]
[1754595103616,1.5525,3842.7,3842.6,0.7507]
[1754595103927,1.5579,3843.1,3843.0,2.25819]
[1754595104121,42.3579,3843.1,3843.0,23.59199]
[1754595104618,41.9481,3843.1,3843.0,23.59199]
[1754595104819,41.5914,3843.1,3843.0,23.59199]
[1754595106120,40.8,3843.1,3843.0,22.66059]
[1754595106321,40.8,3843.1,3843.0,23.59199]
[1754595106925,41.5914,3843.1,3843.0,23.59199]
[1754595108724,41.5914,3843.1,3843.0,5.46599]
[1754595109030,41.9481,3843.1,3843.0,22.07729]
[1754595109728,41.9481,3843.1,3843.0,18.122]
[1754595110026,1.1481,3842.9,3842.8,0.52031]
[1754595110228,1.9146,3842.9,3842.8,18.64231]
[1754595110419,1.9146,3842.9,3842.8,18.86751]
[1754595110619,1.9146,3842.9,3842.8,20.38081]
[1754595111227,1.9146,3842.9,3842.8,19.44881]
[1754595111228,2.43491,3842.9,3842.8,19.44881]
[1754595111424,1.9146,3842.9,3842.5,3.855]
[1754595111630,1.5579,3842.6,3842.5,3.2078]
[1754595111929,1.9146,3842.3,3842.2,18.122]
[1754595112329,1.9146,3841.7,3841.6,0.52048]
[1754595112531,1.9146,3841.5,3841.3,21.3298]
[1754595112729,1.9146,3841.0,3840.9,21.9086]
[1754595113028,1.2709,3840.9,3840.8,18.136]
[1754595113227,0.7914,3840.8,3840.7,0.52061]
[1754595113422,1.5579,3840.8,3840.7,20.53001]
[1754595114034,1.5579,3840.8,3840.7,20.52701]
[1754595114231,40.8,3841.0,3840.9,1.27128]
[1754595114431,40.8,3841.0,3840.9,5.60178]
[1754595114834,41.1608,3841.0,3840.9,5.60178]
[1754595116027,41.9481,3841.0,3840.9,4.47908]
[1754595116227,41.5914,3841.0,3840.9,2.39398]
[1754595116628,41.5914,3841.0,3840.9,5.60178]
[1754595117939,41.5914,3841.0,3840.9,4.29418]
[1754595118136,59.7384,3841.0,3840.9,3.2078]
[1754595118339,1.9146,3840.6,3840.5,3.72843]
[1754595118540,1.9146,3840.6,3840.5,3.95363]
[1754595118840,1.9146,3840.6,3840.5,5.60183]
[1754595119140,1.5579,3840.6,3840.5,5.60183]
[1754595119938,1.9146,3840.6,3840.5,2.39403]
[1754595120642,1.9146,3840.6,3840.5,2.04293]
[1754595122434,1.9146,3840.6,3840.5,20.53103]
[1754595123829,1.9146,3840.6,3840.5,23.73883]
[1754595124132,1.1232,3840.9,3840.8,1.27129]
[1754595124340,1.9146,3840.9,3840.8,0.5658]
[1754595124535,1.9146,3840.9,3840.8,0.2252]
[1754595125035,41.32058,3841.0,3840.5,21.3448]
[1754595125036,1.1232,3840.6,3840.5,21.3448]
[1754595125235,1.9146,3840.6,3840.5,21.9106]
[1754595125441,1.9146,3840.6,3840.5,4.2991]
[1754595125737,1.9146,3840.6,3840.5,5.60183]
[1754595126137,1.9146,3840.6,3840.5,2.39403]
[1754595126338,40.8,3841.0,3840.1,3.2078]
[1754595126339,2.43527,3840.2,3840.1,3.2078]
[1754595126538,1.9146,3840.2,3840.1,3.2078]
[1754595126743,1.9146,3840.2,3840.1,3.7736]
[1754595126941,42.7146,3840.2,3840.1,3.7736]
[1754595127340,41.5665,3840.2,3840.1,5.0812]
[1754595128240,40.8,3840.2,3840.1,5.0812]
[1754595128945,41.1608,3840.2,3840.1,5.0812]
[1754595129240,41.5914,3840.2,3840.1,5.0812]
[1754595129739,41.5914,3840.2,3840.1,23.2102]
[1754595130038,40.8,3840.2,3840.1,23.2102]
[1754595131845,41.5914,3840.2,3840.1,23.2102]
[1754595132142,41.1608,3840.2,3840.1,23.2102]
[1754595132542,41.5914,3840.2,3840.1,23.2102]
[1754595133841,41.942,3840.2,3840.1,22.4281]
[1754595134940,41.942,3840.2,3840.1,23.1856]
[1754595136446,41.942,3840.2,3840.1,22.8427]
[1754595136642,41.5914,3840.2,3840.1,23.1856]
[1754595137038,40.8,3840.2,3840.1,23.1856]
[1754595138657,1.1102,3841.0,3840.9,2.35168]
[1754595138951,1.8847,3841.0,3840.9,20.48168]
[1754595139250,42.6847,3841.0,3840.9,20.48168]
[1754595139549,42.6847,3841.0,3840.7,18.13]
[1754595139550,0.756,3840.9,3840.7,18.13]
[1754595139751,1.8847,3840.8,3840.7,19.2071]
[1754595139949,1.8847,3840.8,3840.7,20.4817]
[1754595141041,1.5341,3840.8,3840.7,23.6895]
[1754595141839,40.8,3841.0,3840.9,0.81678]
[1754595142045,40.8,3841.0,3840.9,20.48068]
[1754595142245,0.756,3841.7,3841.6,2.35158]
[1754595142448,0.756,3841.7,3841.6,20.48058]
[1754595142649,41.556,3841.7,3841.6,20.48058]
[1754595142838,42.6847,3841.7,3841.6,20.48058]
[1754595143038,42.6847,3841.7,3841.6,19.9601]
[1754595143248,42.6847,3841.7,3841.6,20.13768]
[1754595143649,42.6847,3841.7,3841.6,20.48058]
[1754595144953,42.6847,3841.7,3841.6,20.13768]
[1754595145550,42.6847,3841.7,3841.6,20.48058]
[1754595145953,42.6847,3841.7,3841.6,20.13768]
[1754595146453,42.6847,3841.7,3841.6,18.127]
[1754595146657,42.6847,3841.7,3841.6,18.347]
[1754595146950,40.8,3841.7,3841.6,19.9581]
[1754595147151,41.5781,3841.7,3841.6,19.9581]
[1754595148444,41.9287,3841.7,3841.6,19.2006]
[1754595148640,0.5223,3841.6,3841.5,3.72829]
[1754595148853,1.2765,3841.5,3841.4,18.6465]
[1754595149055,2.4052,3841.5,3841.4,18.6465]
[1754595149453,2.4052,3841.5,3841.4,0.5205]
[1754595150152,1.8847,3841.5,3841.4,0.5205]
[1754595150853,1.8847,3841.5,3841.4,1.077]
[1754595151054,1.8847,3841.5,3841.4,1.5941]
[1754595152964,1.8847,3841.5,3841.4,2.3516]
[1754595153557,0.52051,3841.4,3841.3,0.52052]
[1754595153757,2.05461,3841.4,3841.3,0.52052]
[1754595154063,1.8847,3841.4,3841.3,0.74052]
[1754595154270,1.8847,3841.4,3841.3,1.59412]
[1754595154458,1.8847,3841.4,3841.3,2.00872]
[1754595154756,1.8847,3841.4,3841.3,2.35162]
[1754595155150,0.756,3841.2,3841.1,3.2078]
[1754595155351,2.40525,3841.2,3841.0,0.52056]
[1754595155559,2.40526,3841.1,3840.9,18.98107]
[1754595155753,1.5305,3841.0,3840.9,18.98107]
[1754595155949,1.8847,3841.0,3840.9,18.98107]
[1754595156154,42.6847,3841.0,3840.9,19.20107]
[1754595156456,42.6847,3841.0,3840.9,1.07707]
[1754595157258,42.6847,3841.0,3840.9,20.47467]
[1754595160160,42.6847,3841.0,3840.9,20.13177]
[1754595160561,42.6847,3841.0,3840.9,20.47467]
[1754595161064,42.3341,3841.0,3840.9,20.47467]
[1754595161657,41.3267,3841.0,3840.9,20.47467]
[1754595162563,42.1048,3841.0,3840.9,20.47467]
[1754595163962,40.8,3841.0,3840.9,20.47467]
[1754595164159,0.6669,3841.7,3841.6,2.37018]
[1754595164362,1.8042,3841.7,3841.6,19.9717]
[1754595164667,1.24008,3841.7,3841.5,0.52049]
[1754595164959,1.5252,3841.6,3841.5,20.49219]
[1754595165156,19.2593,3842.1,3842.0,1.24982]
[1754595165357,1.1373,3842.1,3842.0,1.1715]
[1754595165675,42.6042,3842.1,3842.0,1.498]
[1754595166856,42.6042,3842.1,3842.0,0.7294]
[1754595167565,42.6042,3842.1,3842.0,1.1715]
[1754595167756,42.6042,3842.1,3842.0,0.7294]
[1754595168060,1.8042,3841.8,3841.7,19.29967]
[1754595169064,1.8042,3841.8,3841.7,20.49217]
[1754595169463,1.0618,3841.8,3841.7,23.69997]
[1754595169656,1.8042,3841.8,3841.7,23.69997]
[1754595170165,1.8042,3841.8,3841.7,3.72827]
[1754595170369,1.8042,3841.8,3841.7,20.13747]
[1754595170965,1.8042,3841.8,3841.7,20.48917]
[1754595172968,1.8042,3841.8,3841.7,2.37017]
[1754595173168,1.8042,3841.8,3841.7,20.48817]
[1754595174471,1.8042,3841.8,3841.7,23.69597]
[1754595176669,1.8042,3841.8,3841.7,22.4973]
[1754595176864,1.8042,3841.8,3841.7,22.8238]
[1754595177265,1.8042,3841.8,3841.7,23.1755]
[1754595177672,1.8042,3841.8,3841.7,22.8238]
[1754595177965,1.8042,3841.8,3841.7,21.3258]
[1754595178270,1.8042,3841.8,3841.7,22.8238]
[1754595178771,1.8042,3841.8,3841.7,22.0552]
[1754595178974,1.8042,3841.8,3841.7,22.8238]
[1754595179372,1.8042,3841.8,3841.7,23.1755]
[1754595179872,1.8042,3841.8,3841.7,5.0575]
[1754595180064,1.8042,3841.8,3841.7,23.1715]
[1754595181271,40.8,3842.1,3842.0,1.24983]
[1754595181475,40.8,3842.1,3842.0,20.48313]
[1754595182367,41.4669,3842.1,3842.0,20.48313]
[1754595182570,41.8846,3842.1,3842.0,20.48313]
[1754595183773,0.7196,3841.8,3841.6,18.113]
[1754595183974,1.8042,3841.7,3841.6,18.3281]
[1754595184167,1.8042,3841.7,3841.6,19.611]
[1754595184565,1.8042,3841.7,3841.6,19.9627]
[1754595184972,1.8042,3841.7,3841.6,19.9607]
[1754595185370,42.6042,3841.7,3841.6,19.9607]
[1754595185968,42.6042,3841.7,3841.6,19.609]
[1754595186478,42.6042,3841.7,3841.6,19.9607]
[1754595186662,42.6042,3841.7,3841.6,19.1921]
[1754595186871,42.6042,3841.7,3841.6,18.8404]
[1754595187168,0.52048,3841.6,3841.5,0.52049]
[1754595187374,1.8042,3841.6,3841.5,18.63049]
[1754595188472,1.8042,3841.6,3841.5,18.84559]
[1754595188683,1.0618,3841.4,3841.3,3.2078]
[1754595188980,1.8042,3841.4,3841.3,4.45772]
[1754595189179,1.8042,3841.4,3841.3,0.52052]
[1754595189679,1.8042,3841.4,3841.3,0.73562]
[1754595189979,2.32472,3841.3,3841.2,0.52053]
[1754595190180,2.32472,3841.3,3841.2,18.62953]
[1754595190376,1.8042,3841.3,3841.2,18.62953]
[1754595190776,1.8042,3841.3,3841.2,19.57493]
[1754595190777,42.6042,3841.3,3841.2,19.57493]
[1754595191480,42.6042,3841.3,3841.2,19.80103]
[1754595191678,42.6042,3841.3,3841.2,20.12753]
[1754595191978,42.6042,3841.3,3841.2,20.47923]
[1754595193176,41.8581,3841.3,3841.2,20.46313]
[1754595193477,40.8,3841.3,3841.2,20.46313]
[1754595193673,41.8923,3841.3,3841.2,2.35414]
[1754595193880,1.8127,3841.0,3840.9,4.7183]
[1754595194077,1.8127,3841.0,3840.9,23.68148]
[1754595194477,1.0589,3841.0,3840.9,23.68148]
[1754595194681,41.8923,3841.3,3841.2,2.36664]
[1754595194896,41.8923,3841.3,3841.2,20.47364]
[1754595195788,41.8923,3841.3,3841.2,19.6175]
[1754595195988,0.7204,3841.2,3841.1,0.75074]
[1754595196286,1.8127,3841.2,3841.1,20.13704]
[1754595196481,1.8127,3841.2,3841.1,20.47264]
[1754595196679,40.8,3841.3,3841.1,20.47264]
[1754595196878,40.8,3841.3,3841.2,1.8461]
[1754595197278,1.1391,3842.2,3842.1,0.52042]
[1754595197481,1.8127,3842.2,3842.1,2.20962]
[1754595197886,1.8127,3842.2,3842.1,0.98142]
[1754595198186,1.8127,3842.1,3842.0,0.52042]
[1754595198375,1.8127,3842.1,3842.0,2.20962]
[1754595198582,1.2647,3842.1,3842.0,0.75062]
[1754595198887,1.8127,3842.1,3842.0,0.75062]
[1754595199189,1.8127,3842.1,3842.0,0.98142]
[1754595199691,1.8127,3842.1,3842.0,0.2302]
[1754595199882,0.7204,3842.1,3841.9,18.62543]
[1754595200082,1.8127,3842.0,3841.9,19.08643]
[1754595200283,1.4776,3842.0,3841.9,19.08543]
[1754595200480,1.8127,3842.0,3841.9,19.36583]
[1754595200689,1.8127,3842.0,3841.9,20.31363]
[1754595202181,1.8127,3842.0,3841.9,19.99733]
[1754595202387,1.8127,3842.0,3841.9,20.31363]
[1754595202886,1.8127,3842.0,3841.9,1.87403]
[1754595203090,0.7204,3841.9,3841.8,3.72825]
[1754595203279,0.7204,3841.9,3841.8,22.29125]
[1754595203280,1.8127,3841.9,3841.8,22.29125]
[1754595203484,1.8127,3841.9,3841.8,4.18925]
[1754595204489,1.8127,3841.9,3841.8,4.80145]
[1754595204792,1.8127,3841.9,3841.8,5.41745]
[1754595205788,1.8127,3841.9,3841.8,23.51745]
[1754595206689,1.8127,3841.9,3841.8,18.3302]
[1754595206887,2.33318,3841.6,3841.5,0.461]
[1754595207088,2.33318,3841.6,3841.5,18.56]
[1754595207387,1.24095,3841.2,3841.1,0.2302]
[1754595207592,0.7204,3841.2,3841.1,1.3536]
[1754595207886,1.4776,3841.0,3840.9,0.52057]
[1754595208191,1.8127,3841.0,3840.9,19.69277]
[1754595208890,1.8127,3841.0,3840.9,20.30877]
[1754595209279,1.8127,3841.0,3840.9,19.97317]
[1754595209583,1.8127,3841.0,3840.9,20.30877]
[1754595210185,40.8,3841.2,3840.9,20.30877]
[1754595210387,40.8,3841.2,3841.1,2.20975]
[1754595213887,1.30079,3842.9,3841.3,1.3013]
[1754595214098,0.7204,3841.9,3841.8,0.98144]
[1754595214389,1.8127,3841.9,3841.8,1.29774]
[1754595214897,42.6127,3841.9,3841.8,1.29774]
[1754595216099,42.6127,3841.9,3841.7,0.52046]
[1754595216296,42.6127,3841.9,3841.8,18.096]
[1754595216504,42.6127,3841.9,3841.8,18.8733]
[1754595217200,0.3351,3841.8,3841.6,3.72827]
[1754595217501,1.4742,3841.7,3841.6,3.2078]
[1754595217698,1.4742,3841.6,3841.5,18.61549]
[1754595217910,1.8127,3841.6,3841.5,18.61549]
[1754595218205,1.8127,3841.6,3841.5,19.16259]
[1754595218598,1.8127,3841.6,3841.5,19.39279]
[1754595219498,1.8127,3841.6,3841.5,19.07649]
[1754595219698,1.8127,3841.6,3841.5,18.3258]
[1754595219902,1.8127,3841.6,3841.5,18.095]
[1754595220109,1.24089,3841.6,3841.4,0.5205]
[1754595220405,1.8127,3841.5,3841.4,0.5205]
[1754595220603,1.8127,3841.3,3841.2,21.3008]
[1754595221100,42.6127,3841.3,3841.2,21.3008]
[1754595221408,42.6127,3841.3,3841.2,3.2078]
[1754595222603,0.7204,3841.0,3840.9,0.52058]
[1754595222908,1.8127,3840.8,3840.7,0.5206]
[1754595223106,1.8127,3840.8,3840.7,0.7514]
[1754595223410,42.6127,3840.8,3840.7,1.3292]
[1754595225597,41.8589,3840.8,3840.7,1.3292]
[1754595225902,42.4117,3840.8,3840.7,1.3292]
[1754595230611,42.4117,3840.8,3840.7,0.5206]
[1754595230807,1.8184,3840.5,3840.4,3.2078]
[1754595232208,1.8184,3840.5,3840.4,4.0024]
[1754595236409,40.8,3840.8,3840.7,0.9676]
[1754595236610,0.3247,3841.0,3840.9,0.52058]
[1754595236815,0.86073,3841.3,3841.2,0.86813]
[1754595236816,0.8354,3841.3,3841.2,0.86813]
[1754595237023,1.0527,3841.3,3841.2,1.31513]
[1754595237220,42.6184,3841.3,3841.2,1.31513]
[1754595239919,41.1247,3841.3,3841.2,1.49433]
[1754595240122,41.8904,3841.3,3841.2,1.31513]
[1754595242022,41.8904,3841.3,3841.2,0.7946]
[1754595242719,42.41093,3841.3,3841.1,0.52054]
[1754595242917,42.41093,3841.3,3840.9,3.2078]
[1754595242918,1.3929,3841.0,3840.9,3.2078]
[1754595243120,0.728,3840.6,3840.5,3.72842]
[1754595243327,1.8184,3840.6,3840.5,3.2078]
[1754595243723,2.33902,3840.6,3840.5,3.2078]
[1754595244019,1.8184,3840.6,3840.5,3.2078]
[1754595244224,42.6184,3840.6,3840.5,4.0024]
[1754595245416,42.6184,3840.6,3840.5,3.4266]
[1754595245623,1.8184,3840.4,3840.3,18.60165]
[1754595246418,1.8184,3840.4,3840.1,3.2078]
[1754595246419,1.8184,3840.2,3840.1,3.2078]
[1754595247327,1.8184,3839.6,3839.5,3.2078]
[1754595247714,42.6184,3839.6,3839.5,3.2078]
[1754595247917,42.6184,3839.6,3839.5,3.72857]
[1754595248419,42.6184,3839.6,3839.5,3.94737]
[1754595248624,42.6184,3839.6,3839.5,4.29497]
[1754595248824,42.6184,3839.6,3839.5,4.52317]
[1754595249323,40.8,3839.6,3839.5,4.70237]
[1754595249625,41.8904,3839.6,3839.5,4.52317]
[1754595251326,41.1247,3839.6,3839.5,4.52317]
[1754595251526,41.1247,3839.6,3839.5,4.70237]
[1754595251922,1.0527,3840.1,3840.0,0.9677]
[1754595252122,1.8184,3840.1,3840.0,1.3153]
[1754595252525,42.6184,3840.1,3840.0,1.3153]
[1754595253624,42.6184,3840.1,3840.0,0.7395]
[1754595254222,42.6184,3840.1,3840.0,0.2188]
[1754595254426,0.716,3839.9,3839.8,18.60172]
[1754595254617,1.802,3839.9,3839.8,18.81382]
[1754595254818,1.802,3839.9,3839.8,19.14022]
[1754595255834,1.802,3839.9,3839.8,19.35642]
[1754595258236,1.802,3839.9,3839.8,18.60172]
[1754595258435,0.52075,3839.7,3839.6,0.52075]
[1754595258737,1.802,3839.6,3839.5,3.72855]
[1754595259129,1.802,3839.6,3839.5,3.2078]
[1754595259737,42.602,3839.6,3839.5,3.2078]
[1754595264940,1.56839,3839.3,3839.2,0.5385]
[1754595265141,2.32279,3839.3,3839.2,0.2121]
[1754595265635,2.32279,3839.3,3839.1,3.72861]
[1754595265840,1.5278,3839.2,3839.1,3.2078]
[1754595266138,1.802,3839.2,3839.1,3.2078]
[1754595266340,1.802,3839.1,3839.0,0.52083]
[1754595266540,1.802,3839.1,3839.0,1.27553]
[1754595266737,42.602,3839.1,3839.0,1.27553]
[1754595266940,41.6252,3839.1,3839.0,1.44233]
[1754595269244,42.0627,3839.1,3839.0,1.27553]
[1754595269443,42.3796,3839.1,3839.0,1.27553]
[1754595269839,0.52083,3839.0,3838.8,0.52085]
[1754595270044,1.802,3838.9,3838.8,0.94915]
[1754595270246,41.886,3839.1,3839.0,1.27553]
[1754595273544,41.1316,3839.1,3839.0,1.27553]
[1754595274340,41.1316,3839.1,3839.0,1.44233]
[1754595274543,41.886,3839.1,3839.0,1.27553]
[1754595274746,41.886,3839.1,3839.0,0.7547]
[1754595284164,40.8,3839.1,3838.9,0.52084]
[1754595284460,1.7502,3839.7,3839.6,1.27375]
[1754595284859,42.5502,3839.7,3839.6,1.27375]
[1754595286064,42.5502,3839.7,3839.6,0.753]
[1754595287058,41.6218,3839.7,3839.6,0.753]
[1754595287262,41.6218,3839.7,3839.6,0.9084]
[1754595287963,42.3441,3839.7,3839.6,0.753]
[1754595288160,42.0351,3839.7,3839.6,0.21]
[1754595288368,42.3441,3839.7,3839.6,0.21]
[1754595288774,42.3441,3839.7,3839.6,0.753]
[1754595292476,1.7502,3839.6,3839.5,0.73076]
[1754595292677,1.7502,3839.6,3839.5,1.27376]
[1754595297376,0.8218,3839.6,3839.5,1.27376]
[1754595297579,1.5441,3839.6,3839.5,1.27376]
[1754595297783,1.7502,3839.6,3839.5,1.27376]
[1754595298583,0.3138,3839.6,3839.5,1.27376]
[1754595298799,0.5378,3839.6,3839.5,1.42916]
[1754595298982,0.8218,3839.6,3839.5,1.42916]
[1754595299182,1.2351,3839.6,3839.5,1.42916]
[1754595299781,1.5441,3839.6,3839.5,1.42916]
[1754595300693,1.7502,3840.5,3840.4,1.05453]
[1754595301079,42.5502,3840.5,3840.4,1.27363]
[1754595301279,40.08432,3841.8,3840.4,1.27363]
[1754595301280,0.7141,3841.0,3840.9,0.73057]
[1754595301478,1.7502,3841.0,3840.9,1.27357]
[1754595301684,0.8218,3841.0,3840.9,1.27357]
[1754595301877,41.6218,3841.0,3840.9,1.42897]
[1754595302078,40.8,3841.0,3840.9,1.63663501]
[1754595303081,41.1138,3841.0,3840.9,1.27357]
[1754595303289,41.8361,3841.0,3840.9,19.32657]
[1754595305691,41.1138,3841.0,3840.9,19.32657]
[1754595305894,41.1138,3841.0,3840.9,19.48197]
[1754595306386,18.048,3841.9,3841.8,1.27345]
[1754595306387,1.7502,3841.9,3841.8,1.27345]
[1754595306592,1.2351,3841.9,3841.8,22.52925]
[1754595306790,42.0351,3841.9,3841.8,22.52925]
[1754595306993,41.1138,3841.9,3841.8,22.52925]
[1754595307192,41.1138,3841.9,3841.8,22.68465]
[1754595307689,0.3138,3842.5,3841.8,22.68465]
[1754595307886,0.8218,3842.5,3842.4,1.27337]
[1754595308080,0.8218,3842.5,3842.4,19.31837]
[1754595308283,42.0351,3842.5,3842.4,19.31837]
[1754595308486,42.3441,3842.5,3842.4,19.31837]
[1754595310388,41.6218,3842.5,3842.4,19.31837]
[1754595310593,1.0231,3843.2,3843.1,0.94938]
[1754595310794,1.4364,3843.2,3843.1,19.31728]
[1754595311191,42.5502,3843.2,3843.1,19.31728]
[1754595311697,42.5502,3843.2,3843.1,18.044]
[1754595311896,42.5502,3843.2,3843.1,18.797]
[1754595312393,40.8,3843.2,3843.1,18.797]
[1754595312595,41.1138,3843.2,3843.1,18.9524]
[1754595312801,41.1138,3843.2,3843.1,18.797]
[1754595313099,40.8,3843.2,3843.1,18.9409]
[1754595313596,41.1186,3843.2,3843.1,18.797]
[1754595313796,41.8809,3843.2,3843.1,18.797]
[1754595314696,41.5641,3843.2,3843.1,18.797]
[1754595315997,41.8809,3843.2,3843.1,18.797]
[1754595316792,41.5641,3843.2,3843.1,18.797]
[1754595317102,41.1186,3843.2,3843.1,18.9289]
[1754595317302,41.1186,3843.2,3843.1,18.785]
[1754595317601,41.8809,3843.2,3843.1,18.785]
[1754595318595,1.7987,3843.1,3842.9,3.2078]
[1754595318798,1.7987,3843.1,3843.0,18.032]
[1754595319396,1.7987,3843.1,3843.0,18.2346]
[1754595319619,1.7987,3843.1,3843.0,18.7442]
[1754595319802,0.3186,3843.1,3843.0,18.7442]
[1754595320003,41.1186,3843.2,3843.1,1.37638]
[1754595320300,40.8,3843.2,3843.1,1.50638]
[1754595320603,0.8229,3843.6,3843.5,0.72282]
[1754595320903,1.4819,3843.6,3843.5,22.46822]
[1754595321103,42.5987,3843.6,3843.5,22.46822]
[1754595321303,40.8,3843.6,3843.5,22.61212]
[1754595321508,0.47975,3844.0,3843.9,1.37627]
[1754595321809,0.7178,3845.1,3845.0,1.23222]
[1754595322111,42.5987,3845.1,3845.0,22.46802]
[1754595322302,3.2078,3847.6,3846.3,0.2026]
[1754595322498,1.0809,3846.6,3846.1,18.027]
[1754595322700,1.0809,3846.6,3845.2,0.1439]
[1754595322701,0.3168,3846.2,3845.2,3.2078]
[1754595323007,0.4455,3845.1,3844.3,3.72791]
[1754595323205,0.6354,3845.4,3844.6,0.52007]
[1754595323402,1.0809,3845.5,3844.6,3.2078]
[1754595323598,0.3186,3845.4,3844.9,0.52003]
[1754595323906,1.0809,3845.3,3845.2,0.51999]
[1754595324108,0.3186,3845.3,3845.2,18.54599]
[1754595324406,1.0809,3846.1,3845.3,0.299]
[1754595324596,1.0809,3846.1,3845.2,18.026]
[1754595324597,3.2078,3846.3,3845.9,0.5199]
[1754595324801,40.8,3846.5,3846.4,0.81883]
[1754595324802,41.5641,3846.5,3846.4,0.81883]
[1754595324997,41.8809,3846.5,3846.4,18.54583]
[1754595325202,40.8,3846.5,3846.4,18.54583]
[1754595325397,41.1186,3846.5,3846.4,18.84483]
[1754595326005,0.7623,3846.4,3845.7,3.2078]
[1754595326200,0.6354,3846.0,3845.6,0.51994]
[1754595326406,1.0809,3845.9,3845.8,18.023]
[1754595327007,1.0809,3845.7,3845.4,18.023]
[1754595327204,1.0809,3845.6,3845.1,18.54299]
[1754595327404,0.51998,3845.4,3845.1,18.023]
[1754595327598,0.51999,3845.2,3844.8,3.2078]
[1754595327804,0.7623,3844.9,3844.4,0.52009]
[1754595328109,1.28422,3844.3,3843.7,18.023]
[1754595328302,0.7623,3844.1,3843.9,0.52016]
[1754595328507,0.5201,3844.4,3843.9,0.52016]
[1754595328706,1.0809,3844.3,3843.8,0.52018]
[1754595329012,0.5201,3844.4,3843.9,18.025]
[1754595329511,0.7641,3844.2,3843.9,18.025]
[1754595329709,1.0809,3844.1,3843.6,0.52021]
[1754595330010,3.2078,3844.6,3843.7,18.023]
[1754595330212,1.0809,3843.8,3843.7,18.023]
[1754595330412,1.0809,3843.7,3843.6,0.52021]
[1754595330616,1.0809,3843.7,3843.6,18.54021]
[1754595330801,41.8809,3843.7,3843.6,18.54021]
[1754595331202,41.1186,3843.7,3843.6,18.83921]
[1754595331412,41.8809,3843.7,3843.6,18.54021]
[1754595332915,41.8809,3843.7,3843.6,0.52021]
[1754595333116,41.8809,3843.7,3843.6,18.54121]
[1754595333713,41.8809,3843.7,3843.6,0.52021]
[1754595334220,41.8809,3843.7,3843.6,18.54121]
[1754595334815,41.1186,3843.7,3843.6,18.54121]
[1754595335012,41.1186,3843.7,3843.6,18.84021]
[1754595335616,41.5641,3843.7,3843.6,18.84021]
[1754595336312,41.8809,3843.7,3843.6,18.84021]
[1754595336506,40.8,3843.7,3843.6,18.98611]
[1754595336913,41.1186,3843.7,3843.6,18.98611]
[1754595337118,40.8,3843.7,3843.6,18.98611]
[1754595337310,0.3186,3844.1,3844.0,0.81915]
[1754595337519,3.2078,3845.1,3844.3,0.299]
[1754595337719,1.0809,3844.9,3844.4,18.021]
[1754595337919,1.0809,3844.7,3844.5,0.52009]
[1754595338220,0.3186,3844.6,3844.5,0.81909]
[1754595338619,1.0809,3844.6,3844.5,0.81909]
[1754595338815,41.8809,3844.6,3844.5,0.81909]
[1754595339618,1.0809,3844.5,3844.4,0.5201]
[1754595340119,40.8,3844.6,3844.3,18.021]
[1754595340416,0.3186,3844.4,3844.3,18.84011]
[1754595341020,1.0809,3844.4,3844.3,18.84011]
[1754595341218,0.3186,3844.4,3844.3,18.84011]
[1754595341811,40.8,3844.6,3844.5,0.52009]
[1754595342116,3.72774,3845.6,3845.3,0.299]
[1754595342320,0.67075024,3845.5,3845.4,0.81896]
[1754595342517,0.7623,3845.4,3845.3,18.53997]
[1754595342912,1.0809,3845.4,3845.3,18.53997]
[1754595343314,1.0809,3845.4,3845.3,18.02]
[1754595344119,0.3186,3845.4,3845.3,18.02]
[1754595344323,0.7589,3845.4,3845.3,18.3359]
[1754595344517,1.0563,3845.4,3845.3,18.02]
[1754595345015,1.0563,3845.4,3845.3,18.3359]
[1754595345221,1.0563,3845.4,3845.3,18.02]
[1754595345824,1.0563,3845.4,3845.3,18.3359]
[1754595346622,0.3186,3845.4,3845.3,18.3359]
[1754595347018,1.0563,3845.4,3845.3,18.02]
[1754595347223,0.3186,3845.4,3845.3,18.3359]
[1754595347428,41.1121,3845.5,3845.4,1.25376]
[1754595347627,41.1121,3845.5,3845.4,4.46156]
[1754595348125,40.8,3845.5,3845.4,4.60096]
[1754595348929,41.1121,3845.5,3845.4,4.60096]